Cogmind - Beta 10 X1 @@@ ROGUE MODE // 2020.06.04 @ 11:16:12 Player: Owlsley Result: Escaped! Performance ------------- Evolutions (9) 4500 Regions Visited (16) 3200 Robots Destroyed (372) 1860 Value Destroyed (17421) 17421 Prototype IDs (23) 460 Alien Tech Used (0) 0 Bonus (9318) 9318 TOTAL SCORE: 36759 Bonus ------- High Alert Combat Kills 5276 Follower Combat Kills 885 Aligned with FarCom 300 Win 3000 Friendly Fire -143 Cogmind --------- Core Integrity 418/1600 Matter 300/300 Energy 73/100 System Corruption 1% Temperature Cool (0) Movement Core (50) Location To Epsilon Eridani Parts ------- > --- POWER (2) -------- (None) > --- PROPULSION (6) --- (None) > --- UTILITY (14) ----- Advanced Target Analyzer > --- WEAPON (3) ------- (None) > --- INVENTORY (4) ---- Heavy Machine Gun KE Penetrator Smartbomb Launcher Peak State ------------ > --- POWER ------------ Light Particle Reactor Quantum Reactor > --- PROPULSION ------- Armored Heavy Treads Armored Heavy Treads Enhanced Armored Heavy Treads > --- UTILITY ---------- Advanced Cryofiber Web Advanced Heat Sink Advanced Heat Sink High-capacity Storage Unit High-capacity Storage Unit High-capacity Storage Unit High-capacity Storage Unit Advanced Target Analyzer Advanced Core Analyzer Advanced Force Field Hacking Suite Improved System Shield Improved System Shield High-powered Tractor Beam > --- WEAPON ----------- Heavy Machine Gun Heavy Machine Gun Railgun > --- INVENTORY -------- Reinforced Antimatter Reactor Light Particle Reactor Quantum Reactor Armored Medium Treads Armored Medium Treads Armored Medium Treads Armored Medium Treads Biometal Medium Treads Armored Heavy Treads Armored Heavy Treads Advanced Heavy Treads Biometal Heavy Treads Matter Compressor System Restoration Module Gamma Rifle Quantum Rifle Quantum Rifle Matter Neutralizer Guided Plasma Cannon Enhanced Nova Cannon Enhanced Nova Cannon Heavy Machine Gun Heavy Machine Gun Heavy Machine Gun Heavy Machine Gun KE Penetrator KE Penetrator Railgun Railgun Smartbomb Launcher Force Lance [Rating: 170] Favorites ----------- Power Antimatter Reactor Engine Cooled Ion Engine Power Core Enhanced Nuclear Core Reactor Antimatter Reactor Propulsion Light Treads Treads Light Treads Leg Carbon-fiber Leg Wheel Wheel Utility High-capacity Storage Unit Device Coolant Injector Storage High-capacity Storage Unit Processor Advanced Core Analyzer Hackware Hacking Suite Protection Improved Medium Armor Plating Weapon Heavy Battle Rifle Energy Gun Gatling Laser Energy Cannon Compact Ion Cannon Ballistic Gun Heavy Battle Rifle Ballistic Cannon Bore Cannon Launcher EMP Blaster Special Weapon Remote Datajack Slashing Weapon Power Sword Piercing Weapon Makeshift Spear Build | -11 -10 -10 -9 -9 -9 -8 -8 -7 -6 -5 -5 -5 -4 -3 -2 -1 ------- Run | Scr Mat Min Mat Min Exi Min Mat Fac Fac Fac Was Fac Fac Res Res Acc Slots Evolved 18 | . . . 2 . . . 2 2 2 2 . . 2 2 2 2 Power 1 | . . . . . . . . . . 1 . . . . . . Propulsion 4 | . . . 2 . . . . 1 1 . . . . . . . Utility 12 | . . . . . . . 2 1 . 1 . . 2 2 2 2 Weapon 1 | . . . . . . . . . 1 . . . . . . . Parts Attached 421 | 1 10 1 10 . 4 1 35 34 83 43 15 17 10 76 38 43 Power 48 | . 1 . 2 . . . 1 3 5 4 1 1 1 11 7 11 Engine 10 | . 1 . 1 . . . 1 2 3 2 . . . . . . Core 10 | . . . 1 . . . . 1 2 2 . . 1 3 . . Reactor 28 | . . . . . . . . . . . 1 1 . 8 7 11 Propulsion 127 | . 4 . 3 . . 1 14 8 36 15 4 8 1 14 10 9 Treads 103 | . 4 . 3 . . 1 14 8 23 4 4 8 1 14 10 9 Leg 14 | . . . . . . . . . 7 7 . . . . . . Wheel 10 | . . . . . . . . . 6 4 . . . . . . Hover . | . . . . . . . . . . . . . . . . . Flight . | . . . . . . . . . . . . . . . . . Utility 91 | 1 1 1 . . 2 . 5 11 8 7 7 5 5 17 12 9 Device 55 | . . . . . 1 . 4 6 7 5 2 3 4 7 9 7 Storage 13 | 1 1 1 . . 1 . . 1 . 1 3 . . 4 . . Processor 8 | . . . . . . . . 1 . . . 1 . 3 1 2 Hackware 7 | . . . . . . . 1 1 1 . . 1 . 3 . . Protection 8 | . . . . . . . . 2 . 1 2 . 1 . 2 . Artifact . | . . . . . . . . . . . . . . . . . Weapon 155 | . 4 . 5 . 2 . 15 12 34 17 3 3 3 34 9 14 Energy Gun 47 | . 3 . 3 . 1 . 5 5 3 8 . 1 1 14 . 3 Energy Cannon 24 | . . . . . 1 . 1 . 14 3 . . . 1 2 2 Ballistic Gun 59 | . 1 . 2 . . . 4 3 12 3 2 2 2 14 6 8 Ballistic Cannon 5 | . . . . . . . . . . . 1 . . 4 . . Launcher 3 | . . . . . . . 2 . . . . . . 1 . . Special Weapon 1 | . . . . . . . . 1 . . . . . . . . Impact Weapon . | . . . . . . . . . . . . . . . . . Slashing Weapon 7 | . . . . . . . . . 4 3 . . . . . . Piercing Weapon 9 | . . . . . . . 3 3 1 . . . . . 1 1 Special Melee Weapon . | . . . . . . . . . . . . . . . . . Unidentified Prototypes 16 | . . . 1 . 2 . 1 3 2 . . 1 1 2 3 . Parts Lost 200 | . 4 . . . . . 11 5 24 38 . 3 . 48 12 55 Power 28 | . 1 . . . . . . . 1 5 . . . 10 3 8 Propulsion 68 | . . . . . . . 6 3 17 20 . . . 8 2 12 Utility 38 | . . . . . . . 1 . 2 2 . 2 . 7 5 19 Weapon 66 | . 3 . . . . . 4 2 4 11 . 1 . 23 2 16 Highest Loss Streak 33 | . 2 . . . . . 5 3 8 14 . 3 . 15 2 33 Average Slot Usage (%) 93 | . 98 100 99 100 99 100 99 99 98 90 52 93 89 89 87 84 Engine 3 | . 13 14 8 11 11 11 9 1 1 8 . . . . . . Core 2 | . . . 2 . . . . 5 4 1 . . 2 2 . . Reactor 2 | . . . . . . . . . . . 4 11 7 4 7 7 Treads 28 | . 22 28 44 44 44 44 35 38 35 27 7 29 31 19 14 12 Device 7 | . . . . . . . 15 8 5 7 3 11 5 7 8 16 Storage 19 | . 28 28 22 22 21 22 18 20 20 17 17 17 15 19 17 15 Processor 2 | . . . . . . . . . . . . 2 . 8 10 9 Hackware 5 | . . . . . . . 2 5 5 4 . 1 5 10 13 11 Energy Gun 5 | . 16 14 11 11 9 11 6 8 7 9 . . . 3 . . Energy Cannon 1 | . . . . . 1 . 2 . 5 2 . . . . . . Ballistic Gun 8 | . 10 14 10 11 11 11 9 5 6 2 5 15 14 6 12 10 Naked Turns . | . . . . . . . . . . . . . . . . . Heaviest Build 201 | 14 43 71 78 78 85 78 84 113 128 140 174 155 193 181 199 201 Greatest Support 215 | 20 40 40 80 80 80 80 83 114 154 138 210 210 165 215 215 200 Greatest Overweight (x) 36 | . 1 1 . . 1 . 4 1 11 36 9 1 1 1 1 4 Average Overweight (x) . | . . 1 . . . . . . . . 1 . . . . . Largest Inventory Capacity 36 | 8 14 20 20 20 20 20 20 28 28 28 28 28 28 36 36 36 Average Capacity 27 | 7 12 14 20 20 19 20 20 25 28 28 28 28 28 36 36 35 Most Carried 36 | 7 14 16 20 20 20 20 20 28 28 28 28 28 28 36 36 36 Average Carried 26 | 6 10 14 18 20 19 19 19 25 27 25 21 27 27 32 35 30 Final Capacity 36 | 8 14 20 20 20 20 20 20 28 28 28 28 28 28 36 36 4 Final Carried 35 | 7 14 16 20 20 20 20 20 28 28 17 28 28 28 35 34 4 Class Distribution -------------------- 24% | Hauler-Skirmisher 23% | Hauler-Mutant 17% | Hauler-Gunner 10% | Scavenger-Mutant 6% | Scavenger-Gunner 5% | Machinist-Skirmisher 4% | Mutant 3% | Hauler-Tank Dominant Class ---------------- Mutant | -10/Materials Commander-Mutant | -10/Mines Hauler-Mutant | -9/Materials Hauler-Mutant | -9/Mines Hauler-Mutant | -9/Exiles Scavenger-Mutant | -8/Mines Scavenger-Mutant | -8/Materials Hauler-Mutant | -7/Factory Hauler-Skirmisher | -6/Factory Machinist-Skirmisher | -5/Factory Hauler-Mutant | -5/Waste Hauler-Skirmisher | -5/Factory Hauler-Tank | -4/Factory Hauler-Gunner | -3/Research Hauler-Gunner | -2/Research Scavenger-Gunner | -1/Access Resources | -11 -10 -10 -9 -9 -9 -8 -8 -7 -6 -5 -5 -5 -4 -3 -2 -1 ----------- Run | Scr Mat Min Mat Min Exi Min Mat Fac Fac Fac Was Fac Fac Res Res Acc Matter Collected 11839 | 210 85 35 175 24 46 69 433 816 1765 824 229 348 179 2734 2295 1572 Remotely 259 | . . . . . . . . . . . . . . . . 259 Salvage Created 20231 | 56 403 87 517 165 . 41 1042 1279 2886 2061 . 261 294 5625 3226 2288 Parts 943 | 2 28 6 32 8 . 3 50 70 104 96 . 14 16 249 174 91 Haulers Intercepted 15 | . 2 . 1 . . . 4 3 3 . . 1 . 1 . . Recyclers Shooed 22 | . . . 1 . . . . 6 5 . . 1 . 5 4 . Parts Field Recycled . | . . . . . . . . . . . . . . . . . Retrieved Matter . | . . . . . . . . . . . . . . . . . Parts Self-Destructed . | . . . . . . . . . . . . . . . . . Prevented . | . . . . . . . . . . . . . . . . . Kills | -11 -10 -10 -9 -9 -9 -8 -8 -7 -6 -5 -5 -5 -4 -3 -2 -1 ------- Run | Scr Mat Min Mat Min Exi Min Mat Fac Fac Fac Was Fac Fac Res Res Acc Combat Hostiles Destroyed 286 | . 8 2 9 4 . 3 15 21 38 35 . 3 5 71 47 25 Melee 2 | . . . . . . . . . . 2 . . . . . . Guns 245 | . 8 2 9 4 . 3 15 20 25 24 . 3 5 56 47 24 Cannons 36 | . . . . . . . . 1 12 9 . . . 14 . . Classes Destroyed 17 | 1 4 . 1 . . . 3 2 2 . . . . 1 3 . Worker 25 | . . . . . . . 1 1 7 1 . . . 4 4 7 Builder 18 | . . . . . . . . 2 4 7 . . . 1 3 1 Tunneler 1 | . . . . . . . . . . . . . . . 1 . Hauler 15 | . 2 . 1 . . . 4 3 3 . . 1 . 1 . . Recycler 17 | 1 . . . . . . . 3 1 1 . . . 8 1 2 Operator 3 | . . . . . . . 1 . 2 . . . . . . . Watcher 6 | . 1 . 1 . . . 1 1 . 1 . . . . 1 . Swarmer 50 | . 3 . . . . 3 . 8 . 13 . 1 . 8 14 . Saboteur 2 | . . . . . . . . . . . . . . . 1 1 Grunt 104 | . 5 2 5 4 . . 8 5 22 12 . . . 21 11 9 Brawler 3 | . . . . . . . . . 1 . . . . 1 1 . Duelist 10 | . . . . . . . . . 3 . . . . 5 1 1 Protector 1 | . . . . . . . . . . . . . . . 1 . Sentry 30 | . . . 4 . . . 6 2 3 3 . . 1 5 5 1 Hunter 33 | . . . . . . . 1 1 3 2 . 2 2 12 3 7 Programmer 52 | . . . . . . . . 5 6 5 . . 2 18 10 6 Behemoth 1 | . . . . . . . . . . . . . . 1 . . Thug 1 | . . . . . . . . . . . . 1 . . . . Best Kill Streak 13 | 1 4 2 3 3 . 3 4 9 8 8 . 1 2 7 8 13 Combat Bots Only 7 | . 4 2 3 3 . 3 4 6 6 6 . 1 2 7 6 6 Max Kills in Single Turn 3 | 1 1 1 1 1 . 1 2 3 2 2 . 1 1 2 3 2 Gunslinging 1 | . . . . . . . . . . 1 . . . 1 . 1 Exploded . | . . . . . . . . . . . . . . . . . Melee 1 | . . . . . . . . . . 1 . . . . . . Uniques/NPCs Destroyed . | . . . . . . . . . . . . . . . . . Combat | -11 -10 -10 -9 -9 -9 -8 -8 -7 -6 -5 -5 -5 -4 -3 -2 -1 -------- Run | Scr Mat Min Mat Min Exi Min Mat Fac Fac Fac Was Fac Fac Res Res Acc Damage Taken 44852 | . 524 44 356 123 . 96 1735 1485 4508 5861 . 405 576 12545 5455 11139 Core 5010 | . 56 . 48 . . . 367 261 582 892 . . 1 1216 405 1182 Absorbed by Shields 1701 | . . . . . . . . . . 525 . 115 364 470 78 149 Core Remaining (%) 54 | 100 . 77 . . . 88 33 62 31 . . 10 99 6 72 26 Volleys Fired 1001 | 3 37 5 29 10 . 6 74 94 170 99 . 12 19 210 142 91 Largest 3 | 2 2 2 2 2 . 2 2 2 3 3 . 3 3 3 3 3 Hottest 270 | 90 100 60 88 79 . 79 143 105 225 270 . 147 99 240 105 230 Shots Fired 2547 | 6 69 9 58 20 . 12 146 174 445 255 . 37 57 581 414 264 Gun 2223 | 6 69 9 58 20 . 12 136 169 318 202 . 37 57 466 409 255 Cannon 323 | . . . . . . . 10 4 127 53 . . . 115 5 9 Launcher . | . . . . . . . . . . . . . . . . . Special 1 | . . . . . . . . 1 . . . . . . . . Kinetic 1602 | . 25 5 29 10 . 6 89 86 183 54 . 34 57 372 409 243 Thermal 870 | 6 44 4 29 10 . 6 47 83 245 201 . 3 . 178 5 9 Explosive . | . . . . . . . . . . . . . . . . . Electromagnetic 74 | . . . . . . . 10 4 17 . . . . 31 . 12 Robot Hit Streak 38 | 5 10 7 7 17 . 4 23 19 28 25 . 12 14 29 30 38 Robot Miss Streak 6 | . 2 1 2 1 . 1 3 6 4 5 . 2 3 3 4 5 Penetration Max 2 | . . . . . . . . . 1 1 . . 1 2 1 1 Secondary Targets 46 | . 1 . 2 . . 1 2 3 3 5 . 1 . 19 7 2 Max Gunslinging Chain 1 | . 1 . 1 . . 1 1 1 1 1 . 1 . 1 1 1 Shots Hit Robots 1924 | 5 50 7 39 15 . 8 115 131 335 189 . 28 46 451 304 201 Core Hits 916 | 2 23 4 19 7 . 3 44 64 155 77 . 12 16 243 167 80 Critical Hits 135 | . 1 . 1 . . . . . 5 3 . . 1 61 37 26 Critical Kills 41 | . . . . . . . . . 1 . . . . 17 9 14 Critical Parts Destroyed 74 | . 1 . 1 . . . . . 4 3 . . . 30 24 11 Melee Attacks 45 | . . . . . . . 3 5 8 25 . . . . 2 2 Impact . | . . . . . . . . . . . . . . . . . Slashing 32 | . . . . . . . . . 7 25 . . . . . . Piercing 13 | . . . . . . . 3 5 1 . . . . . 2 2 Sneak Attacks 2 | . . . . . . . . . . 2 . . . . . . Combat Hostiles . | . . . . . . . . . . . . . . . . . Follow-up Attacks . | . . . . . . . . . . . . . . . . . Damage Inflicted 46607 | 59 531 73 606 283 . 98 2032 2753 8083 5395 . 539 960 12568 7782 4845 Guns 38528 | 59 531 73 601 283 . 98 1617 2667 5250 3664 . 539 960 9901 7782 4503 Cannons 6484 | . . . . . . . 212 86 2774 876 . . . 2194 . 342 Explosions 699 | . . . . . . . 203 . 59 . . . . 437 . . Melee 854 | . . . . . . . . . . 854 . . . . . . Ramming 42 | . . . 5 . . . . . . 1 . . . 36 . . Kinetic 27540 | . 147 29 273 110 . 25 988 895 2542 1045 . 539 960 7869 7782 4336 Thermal 16171 | 59 384 44 328 173 . 73 832 1772 5143 3495 . . . 3526 . 342 Explosive 437 | . . . . . . . . . . . . . . 437 . . Electromagnetic 1563 | . . . . . . . 212 86 398 . . . . 700 . 167 Impact . | . . . . . . . . . . . . . . . . . Slashing 854 | . . . . . . . . . . 854 . . . . . . Piercing . | . . . . . . . . . . . . . . . . . Highest Corruption 22 | . . . . . . . . 5 3 22 22 16 3 9 5 3 Average Corruption 4 | . . . . . . . . 3 2 2 20 9 1 4 3 1 Corruption Purged 44 | . . . . . . . . 6 1 . 6 14 . 10 3 4 Effects 261 | . . . . . . . . 16 50 19 41 49 . 44 36 6 Message Errors 52 | . . . . . . . . 3 13 3 8 9 . 6 8 2 Matter Fused 56 | . . . . . . . . 3 9 1 14 8 . 14 7 . Heat Flow Errors 32 | . . . . . . . . 3 9 2 4 8 . 1 5 . Energy Discharges 19 | . . . . . . . . 1 4 2 4 4 . 1 3 . Parts Rejected 2 | . . . . . . . . . . . . 1 . 1 . . Data Loss (minor) 21 | . . . . . . . . 2 3 1 4 5 . 3 2 1 Data Loss (major) 7 | . . . . . . . . 1 . 1 2 2 . 1 . . Misfires 3 | . . . . . . . . 1 . . . 2 . . . . Misdirections 9 | . . . . . . . . . . . 5 4 . . . . Targeting Errors 54 | . . . . . . . . 2 11 8 . 5 . 15 10 3 Weapon Failures 6 | . . . . . . . . . 1 1 . 1 . 2 1 . Overload Shots 2 | . . . . . . . . . . . . . . 2 . . Overflow Damage 330 | . . . . . . . 26 . 44 237 . . . 23 . . Projectiles 163 | . . . . . . . 10 . 42 88 . . . 23 . . Explosions 18 | . . . . . . . 16 . 2 . . . . . . . Melee 149 | . . . . . . . . . . 149 . . . . . . Knockbacks 20 | . . . . . . . . . . . . . . 20 . . Impact . | . . . . . . . . . . . . . . . . . Kinetic 18 | . . . . . . . . . . . . . . 18 . . Secondary 2 | . . . . . . . . . . . . . . 2 . . Self-Inflicted Damage . | . . . . . . . . . . . . . . . . . Shots . | . . . . . . . . . . . . . . . . . Rammed 6 | . . . 1 . . . . . . 1 . . . 4 . . Targets Rammed 6 | . . . 1 . . . . . . 1 . . . 4 . . Kicked . | . . . . . . . . . . . . . . . . . Crushed . | . . . . . . . . . . . . . . . . . Highest Temperature 559 | 90 382 38 135 87 . 18 153 436 495 404 200 227 522 559 103 45 Average Temperature 111 | 48 96 22 38 39 . 9 31 109 132 141 106 72 108 109 30 23 Received Heat Transfer 5529 | . 246 24 144 69 . . 603 192 1224 1242 . 18 16 1054 310 387 Effects 36 | . 2 . . . . . . . 9 5 . . 10 10 . . Shutdowns 11 | . . . . . . . . . 2 2 . . 3 4 . . Energy Bleed 5 | . 1 . . . . . . . . 1 . . 2 1 . . Interference 8 | . . . . . . . . . 4 2 . . . 2 . . Matter Decay 2 | . . . . . . . . . 2 . . . . . . . Short Circuit 3 | . 1 . . . . . . . 1 . . . 1 . . . Damage (minor) 1 | . . . . . . . . . . . . . 1 . . . Damage (major) 5 | . . . . . . . . . . . . . 3 2 . . Damage (core) 1 | . . . . . . . . . . . . . . 1 . . Siege Activations . | . . . . . . . . . . . . . . . . . Robots Corrupted 3 | . . . . . . . . . 1 . . . . 1 . 1 Combat Hostiles 3 | . . . . . . . . . 1 . . . . 1 . 1 Parts Fried 14 | . . . . . . . 1 2 6 . . . . 2 . 3 Impact Corruptions . | . . . . . . . . . . . . . . . . . Robots Melted . | . . . . . . . . . . . . . . . . . Combat Hostiles . | . . . . . . . . . . . . . . . . . Parts Melted 70 | . 1 . 1 2 . . 2 5 19 13 . . . 23 4 . Heat Transferred 26223 | 161 981 100 753 370 . 185 1768 3234 8225 4947 . . . 5355 . 144 Parts Sabotaged 5 | . . . . . . . . . 4 . . . . 1 . . Parts Stolen . | . . . . . . . . . . . . . . . . . Parts Stripped . | . . . . . . . . . . . . . . . . . Power Chain Reactions 3 | . . . . . . . 2 . 1 . . . . . . . Missiles Intercepted . | . . . . . . . . . . . . . . . . . Alert | -11 -10 -10 -9 -9 -9 -8 -8 -7 -6 -5 -5 -5 -4 -3 -2 -1 ------- Run | Scr Mat Min Mat Min Exi Min Mat Fac Fac Fac Was Fac Fac Res Res Acc Peak Influence 1374 | 5 219 123 256 103 . 70 259 301 707 640 192 841 358 1220 1374 968 Average Influence 378 | 3 85 39 93 19 . 4 99 126 254 424 92 560 273 722 835 818 Maximum Alert Level 4 | . 1 . 1 . . . 1 1 3 2 . 3 1 4 4 3 Low Security (%) 43 | 100 77 100 80 100 . 100 92 84 52 . 100 7 5 7 . . Level 1 15 | . 22 . 19 . . . 7 15 16 49 . 27 94 2 . . Level 2 19 | . . . . . . . . . 27 50 . 34 . 28 38 9 Level 3 19 | . . . . . . . . . 3 . . 30 . 54 41 90 Level 4 2 | . . . . . . . . . . . . . . 7 20 . Level 5 . | . . . . . . . . . . . . . . . . . High Security . | . . . . . . . . . . . . . . . . . Max Security . | . . . . . . . . . . . . . . . . . Squads Dispatched 74 | . 2 . . . . . 3 5 13 10 . 7 3 16 9 6 Investigation 8 | . 2 . . . . . . 1 . . . 1 1 1 . 2 Extermination 29 | . . . . . . . . 4 5 3 . 1 2 7 5 2 Reinforcement 16 | . . . . . . . 3 . 5 2 . 1 . 3 2 . Assault 12 | . . . . . . . . . 1 2 . 1 . 5 2 1 Garrison 9 | . . . . . . . . . 2 3 . 3 . . . 1 Intercept . | . . . . . . . . . . . . . . . . . Construction Impeded 7 | . . . . . . . 1 . 2 1 . . . 2 1 . Haulers Reinforced 3 | . . . . . . . . . 1 1 . . . 1 . . Stealth | -11 -10 -10 -9 -9 -9 -8 -8 -7 -6 -5 -5 -5 -4 -3 -2 -1 --------- Run | Scr Mat Min Mat Min Exi Min Mat Fac Fac Fac Was Fac Fac Res Res Acc Distress Signals 24 | . 1 . . . . . 4 1 4 4 . . . 5 4 1 Communications Jammed . | . . . . . . . . . . . . . . . . . Distress Signals . | . . . . . . . . . . . . . . . . . Times Spotted 500 | . 15 4 16 5 . 3 33 27 79 70 1 19 9 102 79 38 Peak Tracking Total 9 | . 4 4 4 3 . 2 5 6 8 9 1 5 3 7 7 8 Tactical Retreats 37 | . . . 1 1 . . 5 . 8 8 . 1 . 2 8 3 Traps | -11 -10 -10 -9 -9 -9 -8 -8 -7 -6 -5 -5 -5 -4 -3 -2 -1 ------- Run | Scr Mat Min Mat Min Exi Min Mat Fac Fac Fac Was Fac Fac Res Res Acc Traps Triggered 16 | . . . . . . . 1 2 4 2 . 3 . 2 . 2 Indirectly . | . . . . . . . . . . . . . . . . . Trap Hack Attempts . | . . . . . . . . . . . . . . . . . Triggered . | . . . . . . . . . . . . . . . . . Disarmed . | . . . . . . . . . . . . . . . . . Reprogrammed . | . . . . . . . . . . . . . . . . . Reused . | . . . . . . . . . . . . . . . . . Traps Extracted . | . . . . . . . . . . . . . . . . . Installed . | . . . . . . . . . . . . . . . . . Triggered 2 | . . . . . . . . . . . . . . . . 2 Machines | -11 -10 -10 -9 -9 -9 -8 -8 -7 -6 -5 -5 -5 -4 -3 -2 -1 ---------- Run | Scr Mat Min Mat Min Exi Min Mat Fac Fac Fac Was Fac Fac Res Res Acc Machines Disabled 20 | . . . . . . . 1 1 5 1 . 5 . 4 3 . Max in Single Turn 1 | . . . . . . . 1 1 1 1 . . . 1 1 . Garrison Access 6 | . . . . . . . 1 1 3 . . . . . . 1 Machines Sabotaged . | . . . . . . . . . . . . . . . . . Garrisons Compromised . | . . . . . . . . . . . . . . . . . Overloaded Fab Kills . | . . . . . . . . . . . . . . . . . Fab Network Shutdowns 1 | . . . . . . . . . . . . . . 1 . . Hacking | -11 -10 -10 -9 -9 -9 -8 -8 -7 -6 -5 -5 -5 -4 -3 -2 -1 --------- Run | Scr Mat Min Mat Min Exi Min Mat Fac Fac Fac Was Fac Fac Res Res Acc Machines Accessed 73 | . 8 . 6 1 . 2 6 12 14 . . 5 3 9 3 4 Terminals 45 | . 5 . 5 1 . 2 5 5 5 . . 4 1 6 3 3 Fabricators 9 | . . . . . . . . 3 3 . . . 1 2 . . Repair Stations 5 | . 1 . 1 . . . . . 2 . . . . 1 . . Recycling Units 6 | . 2 . . . . . . 2 1 . . . 1 . . . Scanalyzers 2 | . . . . . . . . 1 1 . . . . . . . Garrison Access 6 | . . . . . . . 1 1 2 . . 1 . . . 1 Total Hacks 216 | . 35 . 23 4 . 7 20 32 33 . . 12 7 25 6 12 Successful 105 | . 27 . 14 2 . 3 10 15 19 . . 3 2 6 1 3 Failed 110 | . 7 . 9 2 . 4 10 17 14 . . 9 5 19 5 9 Catastrophic 19 | . . . . 1 . . . . 1 . . 3 . 7 3 4 Database Lockouts 1 | . 1 . . . . . . . . . . . . . . . Manual 110 | . 18 . 15 5 1 6 15 12 12 . . 10 2 13 . 1 Terminals 145 | . 21 . 21 4 . 7 17 17 12 . . 11 3 19 6 7 Fabricators 20 | . . . . . . . . 6 9 . . . 2 3 . . Repair Stations 17 | . 6 . 2 . . . . . 6 . . . . 3 . . Recycling Units 19 | . 8 . . . . . . 7 2 . . . 2 . . . Scanalyzers 3 | . . . . . . . . 1 2 . . . . . . . Garrison Access 12 | . . . . . . . 3 1 2 . . 1 . . . 5 Terminal Hacks 50 | . 13 . 10 2 . 3 6 5 2 . . 3 . 3 1 2 Part Schematic 7 | . . . 4 1 . 2 . . . . . . . . . . Robot Analysis 1 | . 1 . . . . . . . . . . . . . . . Prototype ID Bank 3 | . 2 . 1 . . . . . . . . . . . . . Level Access Points 4 | . . . . . . . . . 1 . . 1 . 1 1 . Branch Access Points 4 | . 1 . 1 . . . 1 . 1 . . . . . . . Terminal Index 1 | . . . . . . . . 1 . . . . . . . . Fabricator Index 2 | . . . . . . . . 1 . . . 1 . . . . Repair Station Index 1 | . . . . . . . 1 . . . . . . . . . Scanalyzer Index 1 | . 1 . . . . . . . . . . . . . . . Unreport Threat 10 | . 1 . 2 1 . . 1 2 . . . 1 . 2 . . Locate Traps 5 | . 1 . 1 . . . 2 . . . . . . . . 1 Recall Investigation 1 | . 1 . . . . . . . . . . . . . . . Hauler Manifests 1 | . 1 . . . . . . . . . . . . . . . Zone Layout 9 | . 4 . 1 . . 1 1 1 . . . . . . . 1 Fabricator Hacks 13 | . . . . . . . . 3 6 . . . 2 2 . . Load Schematic 5 | . . . . . . . . 2 1 . . . 1 1 . . Build 8 | . . . . . . . . 1 5 . . . 1 1 . . Repair Station Hacks 12 | . 6 . 2 . . . . . 3 . . . . 1 . . Scan Component 7 | . 3 . 1 . . . . . 2 . . . . 1 . . Repair 5 | . 3 . 1 . . . . . 1 . . . . . . . Recycling Unit Hacks 3 | . 1 . . . . . . 2 . . . . . . . . Retrieve Components 3 | . 1 . . . . . . 2 . . . . . . . . Scanalyzer 2 | . . . . . . . . . 2 . . . . . . . Insert Component 1 | . . . . . . . . . 1 . . . . . . . Analyze 1 | . . . . . . . . . 1 . . . . . . . Garrison Access Hacks 5 | . . . . . . . 1 1 2 . . . . . . 1 Seal Access 5 | . . . . . . . 1 1 2 . . . . . . 1 Unauthorized Hacks 20 | . 7 . 2 . . . 3 4 4 . . . . . . . Terminals 10 | . 3 . 2 . . . 2 1 2 . . . . . . . Assimilate 1 | . 1 . . . . . . . . . . . . . . . Botnet 4 | . 1 . 1 . . . . 1 1 . . . . . . . Disrupt 2 | . . . . . . . 1 . 1 . . . . . . . Operators 3 | . 1 . 1 . . . 1 . . . . . . . . . Fabricators . | . . . . . . . . . . . . . . . . . Repair Stations . | . . . . . . . . . . . . . . . . . Recycling Units 9 | . 4 . . . . . . 3 2 . . . . . . . Reject 2 | . 1 . . . . . . . 1 . . . . . . . Recyclers 3 | . 1 . . . . . . 2 . . . . . . . . Mask 3 | . 1 . . . . . . 1 1 . . . . . . . Tunnel 1 | . 1 . . . . . . . . . . . . . . . Scanalyzers . | . . . . . . . . . . . . . . . . . Garrison Access 1 | . . . . . . . 1 . . . . . . . . . Reprogram 1 | . . . . . . . 1 . . . . . . . . . Data Cores Recovered 1 | . . . 1 . . . . . . . . . . . . . Used . | . . . . . . . . . . . . . . . . . Hacking Detections 67 | . 6 . 6 1 . 2 6 11 11 . . 5 3 9 3 4 Full Trace Events 3 | . . . . . . . . 1 . . . . 1 . . 1 Feedback Events . | . . . . . . . . . . . . . . . . . Feedback Blocked . | . . . . . . . . . . . . . . . . . Robot Schematics Acquired . | . . . . . . . . . . . . . . . . . Robots Built . | . . . . . . . . . . . . . . . . . Matter . | . . . . . . . . . . . . . . . . . Time . | . . . . . . . . . . . . . . . . . Total Robot Build Rating . | . . . . . . . . . . . . . . . . . Part Schematics Acquired 8 | . . . 4 1 . 2 . . 1 . . . . . . . Parts Built 15 | . . . . . . . . 2 10 . . . 2 1 . . Matter 1146 | . . . . . . . . 124 708 . . . 124 190 . . Time 317 | . . . . . . . . 31 177 . . . 62 47 . . Total Part Build Rating 41 | . . . . . . . . 4 28 . . . 4 5 . . Parts Repaired 5 | . 3 . 1 . . . . . 1 . . . . . . . Time 123 | . 78 . 26 . . . . . 19 . . . . . . . Parts Recycled . | . . . . . . . . . . . . . . . . . Recycled Matter . | . . . . . . . . . . . . . . . . . Retrieved Matter . | . . . . . . . . . . . . . . . . . Retrieved Components 4 | . 2 . . . . . . 2 . . . . . . . . Parts Scanalyzed 1 | . . . . . . . . . 1 . . . . . . . Part Schematics Acquired 1 | . . . . . . . . . 1 . . . . . . . Parts Damaged . | . . . . . . . . . . . . . . . . . Bothacking | -11 -10 -10 -9 -9 -9 -8 -8 -7 -6 -5 -5 -5 -4 -3 -2 -1 ------------ Run | Scr Mat Min Mat Min Exi Min Mat Fac Fac Fac Was Fac Fac Res Res Acc Used RIF Installer . | . . . . . . . . . . . . . . . . . Robots Hacked 1 | . . . . . . . . 1 . . . . . . . . Non-combat 1 | . . . . . . . . 1 . . . . . . . . Combat . | . . . . . . . . . . . . . . . . . Robot Hacks Applied 1 | . . . . . . . . 1 . . . . . . . . find_recycling 1 | . . . . . . . . 1 . . . . . . . . Relay Couplers Released 4 | . . . . . . . . . 3 . . . . . . 1 Machine Destruction 1 | . . . . . . . . . . . . . . . . 1 Programmers 3 | . . . . . . . . . 3 . . . . . . . Robots Rewired . | . . . . . . . . . . . . . . . . . Allies Hacked . | . . . . . . . . . . . . . . . . . Hacks Repelled . | . . . . . . . . . . . . . . . . . Allies | -11 -10 -10 -9 -9 -9 -8 -8 -7 -6 -5 -5 -5 -4 -3 -2 -1 -------- Run | Scr Mat Min Mat Min Exi Min Mat Fac Fac Fac Was Fac Fac Res Res Acc Total Allies 27 | . 1 3 . . . . 3 . . . 20 . . . . . Largest Group 20 | . 1 4 3 1 1 1 4 . . . 20 20 1 . . . Highest-Rated Group 809 | . 10 50 42 9 9 9 57 . . . 809 809 31 . . . Highest-Rated Ally 50 | . 10 16 16 9 9 9 16 . . . 50 50 31 . . . Total Orders 5 | . . . . . . . . . . . . . . 2 3 . COLLECT 5 | . . . . . . . . . . . . . . 2 3 . Ally Attacks 182 | . . 15 15 . . . 15 . . . 6 131 . . . . Total Damage 4616 | . . 166 199 . . . 208 . . . 338 3705 . . . . Kills 31 | . . 3 3 . . . 1 . . . 1 23 . . . . Allies Corrupted . | . . . . . . . . . . . . . . . . . Allies Melted . | . . . . . . . . . . . . . . . . . Intel | -11 -10 -10 -9 -9 -9 -8 -8 -7 -6 -5 -5 -5 -4 -3 -2 -1 ------- Run | Scr Mat Min Mat Min Exi Min Mat Fac Fac Fac Was Fac Fac Res Res Acc Robot Analysis Total 1 | . 1 . . . . . . . . . . . . . . . Derelict Logs Recovered 4 | . . 1 . 3 . . . . . . . . . . . . Drone Launches 5 | . . . . . . . . . . . . . . 2 3 . Drone Recoveries 1 | . . . . . . . . . . . . . . . 1 . Exploration | -11 -10 -10 -9 -9 -9 -8 -8 -7 -6 -5 -5 -5 -4 -3 -2 -1 ------------- Run | Scr Mat Min Mat Min Exi Min Mat Fac Fac Fac Was Fac Fac Res Res Acc Turns Passed 21557 | 29 835 267 753 738 428 398 1195 2358 4148 1582 847 1344 585 3022 1843 1185 Spaces Moved 9722 | 15 349 139 367 430 254 225 484 1140 2058 597 377 744 237 1113 729 464 Core 10 | . . . . . . . . . . 1 . . . . . 9 Treads 9294 | . 272 139 367 430 254 225 484 1140 1822 537 346 744 237 1113 729 455 Legs 214 | 15 77 . . . . . . . 85 37 . . . . . . Wheels 204 | . . . . . . . . . 151 22 31 . . . . . Hover . | . . . . . . . . . . . . . . . . . Flight . | . . . . . . . . . . . . . . . . . Fastest Speed 50 | 120 120 180 160 160 160 160 160 160 93 120 160 160 168 155 158 50 Average Speed 164 | 120 166 180 160 160 161 160 165 172 149 167 185 167 187 170 167 171 Slowest Speed 1850 | 120 180 180 160 160 180 160 240 180 330 1850 200 190 190 188 190 250 Overloaded Moves . | . . . . . . . . . . . . . . . . . Propulsion Burnouts . | . . . . . . . . . . . . . . . . . Robots Hopped . | . . . . . . . . . . . . . . . . . Cave-ins Triggered 1 | . . . . . . . 1 . . . . . . . . . Exploration Rate (%) 36 | 3 47 37 34 83 61 30 50 36 39 15 92 20 7 26 22 11 Regions Visited 16 Branch Regions 4 Pre-discovered Areas 1 | . 1 . . . . . . . . . . . . . . . Known Exits Taken 8 | . 1 . 1 . . . 1 1 1 . . 1 . 1 1 . Unknown Exits Taken 6 | 1 . 1 . 1 1 1 . . . . . . 1 . . . Scrap Searched 5 | . . 1 . 2 . 2 . . . . . . . . . . Spaces Dug 32 | . . . . . . . 3 4 10 3 . . . 5 7 . Terrain Destroyed 117 | . . . . . . . 11 4 28 18 . 1 3 39 11 2 Melee 20 | . . . . . . . 3 4 8 3 . . . . 2 . Projectile 76 | . . . . . . . . . 20 15 . 1 3 26 9 2 AOE 21 | . . . . . . . 8 . . . . . . 13 . . Actions | -11 -10 -10 -9 -9 -9 -8 -8 -7 -6 -5 -5 -5 -4 -3 -2 -1 --------- Run | Scr Mat Min Mat Min Exi Min Mat Fac Fac Fac Was Fac Fac Res Res Acc Total 13240 | 19 540 148 481 461 274 252 763 1386 2794 923 526 821 338 1792 1059 663 Wait 1436 | . 115 . 40 20 2 17 126 73 361 121 103 15 49 278 85 31 Move 9706 | 14 348 138 366 429 253 224 483 1139 2057 597 376 743 236 1112 728 463 Hop . | . . . . . . . . . . . . . . . . . Pick Up 384 | 1 21 3 18 1 9 2 21 23 66 27 23 17 12 82 32 26 Fast Attach 76 | 1 2 . 5 . 4 . 9 5 16 2 2 9 2 5 11 3 Attach 227 | . 4 . 3 . . . 13 7 41 31 10 5 5 57 17 34 Detach 3 | . . . . . 1 . 1 . 1 . . . . . . . Swap 118 | . 4 1 2 . . 1 13 22 26 10 3 3 3 14 10 6 Drop 234 | . 9 1 17 1 5 2 20 16 48 10 9 17 12 28 32 7 Fire 1001 | 3 37 5 29 10 . 6 74 94 170 99 . 12 19 210 142 91 Melee 45 | . . . . . . . 3 5 8 25 . . . . 2 2 Ram 1 | . . . . . . . . . . 1 . . . . . . Kick . | . . . . . . . . . . . . . . . . . Crush 5 | . . . 1 . . . . . . . . . . 4 . . Escape Stasis 4 | . . . . . . . . 2 . . . . . 2 . . Rewire . | . . . . . . . . . . . . . . . . . Trap . | . . . . . . . . . . . . . . . . . Miscellaneous . | . . . . . . . . . . . . . . . . . Route ------- -11/Scrapyard -10/Materials (discovered 4 exits: *Mat x3 / *Min) -10/Mines -9/Materials (discovered 3 exits: *Min x2 / *Sto) -9/Mines (discovered 3 exits: *Mat x2 / *Exi) -9/Exiles (discovered 2 exits: *Min x2) -8/Mines -8/Materials (discovered 2 exits: *Fac x2) -7/Factory (discovered 2 exits: *Fac / [*Low]) -6/Factory (discovered 6 exits: *Fac x4 / *Low x2) -5/Factory -5/Waste -5/Factory (discovered 5 exits: *Fac x4 / *Upp) -4/Factory -3/Research (discovered 4 exits: *Res x3 / [*Arm]) -2/Research (discovered 3 exits: *Acc x3) -1/Access To Epsilon Eridani History --------- Turn | Location | Event 10 | -11/Scrapyard | Discovered new exit (range 3) 30 | -11/Scrapyard | Entered Materials 87 | -10/Materials | Identified exit to Mines 87 | -10/Materials | Discovered new exit (range 18) 87 | -10/Materials | Central database locked down 303 | -10/Materials | Build established: Mutant 366 | -10/Materials | Discovered new exit (range 15) 402 | -10/Materials | Discovered new exit (range 15) 712 | -10/Materials | Repaired Lgt. Treads 739 | -10/Materials | Repaired Lgt. Treads 766 | -10/Materials | Repaired Lgt. Treads 865 | -10/Materials | Entered Mines 865 | -10/Mines | Accompanied by 1 ally 873 | -10/Mines | Assisted by bots powering up and referring to "LRC-V3" 963 | -10/Mines | Learned Materials terminal intel 1080 | -10/Mines | A weapon hastily lodged in a ceiling crevice suddenly fell to the ground 1112 | -10/Mines | Discovered new exit (range 11) 1132 | -10/Mines | Entered Materials 1132 | -9/Materials | Accompanied by 3 allies 1132 | -9/Materials | Evolved 2 slots: Propulsion x2 1133 | -9/Materials | Loaded intel: 12 terminal locations 1184 | -9/Materials | Repaired Lgt. Assault Rifle 1260 | -9/Materials | Discovered new exit (range 16) 1398 | -9/Materials | Build established: Hauler-Mutant 1469 | -9/Materials | Identified exit to Mines 1469 | -9/Materials | Identified exit to Storage 1885 | -9/Materials | Entered Mines 1885 | -9/Mines | Accompanied by 1 ally 1887 | -9/Mines | Met a Derelict bent on vengeance 2036 | -9/Mines | Discovered new exit (range 11) 2137 | -9/Mines | Discovered new exit (range 9) 2138 | -9/Mines | Found a hidden stash of uninstalled traps 2157 | -9/Mines | Learned Materials interactive machine intel 2471 | -9/Mines | Learned 8 Materials zone layouts 2617 | -9/Mines | Deemed a non-threat by the Exiles lab entrance 2617 | -9/Mines | Discovered new exit (range 5) 2623 | -9/Mines | Entered Exiles 2623 | -9/Exiles | Accompanied by 1 ally 2649 | -9/Exiles | Discovered new exit (range 15) 2668 | -9/Exiles | Met 8R-AWN 2691 | -9/Exiles | Met EX-HEX 2742 | -9/Exiles | Met EX-BIN 2761 | -9/Exiles | Aligned with FarCom system 2763 | -9/Exiles | Given EX-Vault access code 2801 | -9/Exiles | Opened EX-Vault 2811 | -9/Exiles | Found Prototype Device 2811 | -9/Exiles | Identified Supersonic Drone Bay 2819 | -9/Exiles | Found Prototype Energy Cannon 2819 | -9/Exiles | Identified Gui. Plasma Cannon 2886 | -9/Exiles | Exiles lab attacked by MAIN.C 3028 | -9/Exiles | Discovered new exit (range 14) 3051 | -9/Exiles | Left Exiles lab with Gui. Plasma Cannon 3051 | -9/Exiles | Entered Mines 3051 | -8/Mines | Accompanied by 1 ally 3377 | -8/Mines | Build established: Scavenger-Mutant 3433 | -8/Mines | Discovered new exit (range 6) 3449 | -8/Mines | Entered Materials 3449 | -8/Materials | Accompanied by 1 ally 3449 | -8/Materials | Evolved 2 slots: Utility x2 3450 | -8/Materials | Identified exit to Factory 3451 | -8/Materials | Loaded intel: 19 interactive machine locations 4221 | -8/Materials | Crushed by falling debris 4221 | -8/Materials | Core integrity fell below 50% 4293 | -8/Materials | Lost 5 parts (4n1w) 4628 | -8/Materials | Discovered exit to Factory (range 9) 4644 | -8/Materials | Entered Factory 4644 | -7/Factory | Evolved 2 slots: Propulsion x1, Utility x1 4844 | -7/Factory | Build established: Hauler-Mutant 4857 | -7/Factory | Discovered new exit (range 16) 6511 | -7/Factory | Lost 3 parts (2n1w) 6778 | -7/Factory | Discovered new exit (range 15) 6804 | -7/Factory | Identified exit to Factory 6855 | -7/Factory | Fabricated Imp. Treads (x2) 7002 | -7/Factory | Entered another Factory area 7002 | -6/Factory | Evolved 2 slots: Propulsion x1, Weapon x1 7314 | -6/Factory | Build established: Hauler-Skirmisher 7503 | -6/Factory | Identified exit to Lower Caves 7561 | -6/Factory | Garrison activated, responded to threat 7739 | -6/Factory | Found Hvy. Reflective Plating 8273 | -6/Factory | Garrison activated, responded to threat 8430 | -6/Factory | Identified exit to Factory 8668 | -6/Factory | Fabricated System Restoration Module? 9233 | -6/Factory | Repaired Adv. Treads 9574 | -6/Factory | Spotted B-75 Beast 10511 | -6/Factory | Lost 5 parts (4n1w) 10633 | -6/Factory | Core integrity fell below 50% 10764 | -6/Factory | Lost 8 parts (1p6n1w) 10946 | -6/Factory | Fabricated Imp. Treads (x2) 10981 | -6/Factory | Fabricated Imp. Treads (x2) 11016 | -6/Factory | Fabricated Imp. Treads (x2) 11053 | -6/Factory | Fabricated Imp. Treads (x2) 11150 | -6/Factory | Entered another Factory area 11150 | -5/Factory | Evolved 2 slots: Power x1, Utility x1 11305 | -5/Factory | Build established: Machinist-Skirmisher 12318 | -5/Factory | Lost 9 parts (2p5n2w) 12320 | -5/Factory | Garrison activated, responded to threat 12547 | -5/Factory | Core integrity fell below 50% 12580 | -5/Factory | Lost 14 parts (2p8n1u3w) 12683 | -5/Factory | System corruption reached 10% 12690 | -5/Factory | First assault squad dispatched 12720 | -5/Factory | Core integrity fell below 20% 12732 | -5/Factory | Sucked down chute 12732 | -5/Factory | Entered Waste 12733 | -5/Waste | Joined by Warlord forces that had cleared the area 12751 | -5/Waste | Lost 13 parts (1p7n1u4w) 12786 | -5/Waste | Found Unknown Protection 12884 | -5/Waste | Identified Damper Plating 12962 | -5/Waste | Build established: Hauler-Mutant 13260 | -5/Waste | A Compactor rumbled back to life 13260 | -5/Waste | Spotted C-40 Crusher 13261 | -5/Waste | Allies destroyed C-40 Crusher 13323 | -5/Waste | Found Damper Plating 13449 | -5/Waste | Discovered new exit (range 11) 13492 | -5/Waste | Build established: Hauler-Skirmisher 13579 | -5/Waste | Entered Factory 13579 | -5/Factory | Accompanied by 20 allies 13685 | -5/Factory | Garrison activated, responded to threat 13927 | -5/Factory | Build established: Scavenger-Tank 13950 | -5/Factory | Discovered new exit (range 3) 13960 | -5/Factory | Found Prototype Processor 13960 | -5/Factory | Identified Exp. Signal Interpreter 13961 | -5/Factory | Identified exit to Upper Caves 14246 | -5/Factory | Build established: Hauler-Skirmisher 14620 | -5/Factory | Identified exit to Factory 14721 | -5/Factory | Lost 3 parts (2u1w) 14779 | -5/Factory | First assault squad dispatched 14923 | -5/Factory | Entered another Factory area 14923 | -4/Factory | Accompanied by 1 ally 14923 | -4/Factory | Evolved 2 slots: Utility x2 15174 | -4/Factory | Fabricated Disposable Heat Sink (x2) 15229 | -4/Factory | P-70 Sage assimilated allied P9-W8F(m) 15297 | -4/Factory | Build established: Hauler-Tank 15343 | -4/Factory | Discovered new exit (range 12) 15508 | -4/Factory | Entered Research 15508 | -3/Research | Evolved 2 slots: Utility x2 15574 | -3/Research | Fabricated Imp. System Shield (x1) 15642 | -3/Research | Found Quantum Capacitor 15810 | -3/Research | Local fabrication network quarantined 16329 | -3/Research | Spotted B-86 Titan 16332 | -3/Research | Build established: Hauler-Gunner 16364 | -3/Research | Destroyed B-86 Titan 16758 | -3/Research | First assault squad dispatched 16986 | -3/Research | Lost 15 parts (2p3n3u7w) 17111 | -3/Research | Core integrity fell below 50% 17153 | -3/Research | Destroyed 7 combat bots 17155 | -3/Research | Lost 9 parts (4p2n3w) 18019 | -3/Research | Identified exit to Research 18094 | -3/Research | Core integrity fell below 20% 18346 | -3/Research | Lost 3 parts (1p1n1w) 18419 | -3/Research | Discovered new exit (range 5) 18477 | -3/Research | Found Prototype Launcher 18481 | -3/Research | Identified Tactical Quantum Warhead 18530 | -3/Research | Entered another Research area 18530 | -2/Research | Evolved 2 slots: Utility x2 18841 | -2/Research | Build established: Scavenger-Gunner 19083 | -2/Research | Identified exit to Access 19301 | -2/Research | Build established: Hauler-Gunner 19311 | -2/Research | First assault squad dispatched 20373 | -2/Research | Entered Access 20373 | -1/Access | Evolved 2 slots: Utility x2 20662 | -1/Access | Build established: Scavenger-Gunner 20876 | -1/Access | Discovered new exit (range 17) 20911 | -1/Access | First assault squad dispatched 21110 | -1/Access | Lost 10 parts (2p3n3u2w) 21415 | -1/Access | Garrison activated, responded to threat 21451 | -1/Access | Lost 5 parts (2p3w) 21476 | -1/Access | Spotted B-99 Colossus 21478 | -1/Access | Spotted B-99 Colossus 21534 | -1/Access | Core integrity fell below 50% 21558 | *** | Escaped! Last Messages --------------- 21536_ Arm. Medium Treads destroyed. 21536_ Penetrated by Slug. 21536_ Slug penetrates Sealed Heavy Doors. 21536_ Hcp. Storage Unit destroyed. 21536_ Force Lance destroyed. 21536_ Penetrated by Slug. 21536_ Slug penetrates Sealed Heavy Doors. 21538_ B-99 Colossus activates siege mode. 21542_ Penetrated by Slug. 21542_ Hcp. Storage Unit destroyed. 21542_ KE Penetrator crushed and broken. 21542_ Slug penetrates Sealed Heavy Doors. 21542_ Penetrated by Slug. Sealed Heavy Doors opened remotely. 21556_ Enh. Nova Cannon destroyed. 21556_ Penetrated by Slug. 21556_ Slug penetrates Main Access Shell. 21556_ Slug penetrates Reinforced Barrier. 21556_ Penetrated by Slug. 21556_ Imp. System Shield destroyed. Map ----- +----------------------------------------------------+ | ??????????# + " # ## | | ??????????# # """ # !## " | | ??????????# #?? """ # !|!## | | ??????????# #????" # [%*## | | ??????????# #????? ##################+##=## | | ??????????# #????? #??????# #!## | | ??????????# #?????#####??????# #%## | | ??????????# #????????????????# #%## | | ??????????# %#????????????????# #%= ### | | ??????????#%%#????????????????# = | | ########### #????????????????# "" [[ = | | %[|=#% #????????????????# "" [ | | %%=!# #????????????????# "T % | | !=!= #%%#????????????????# "" = ^ | | !! !=/ #????????????????# "" # ! | | =%%%=# *#????????????????# ! # =% | | """ =!!!#==#????????????????# = # = | | ###########!%#????????????????####### ###### = %! | | ??????????#%%#?????###??????????????###????# = | | ??????????#= #######"#####################?# | | ??????????# """T"""" #?# ## | | ??????????# """ """" BB ### # | | ??????????# !% " """ BB "#" # | | ??????????# " " " # | | ??????????# " " "" " # | | ??????????# " " @" " ] " | | ??????????# " " " ][ # | | ??????????# " """""" ]![[BB #"###"## | | ??????????# "?? [BB ###??? #? | | ??????????#! " [ #??????#? | | ??????????#% #######"#####################???????? | | ??????????#[ ????????????????????????????????????? | | ??????????# ????????????????????????????????????? | | ??????????#" ????????????????????????????????????? | | ??????????#%"????????????????????????????????????? | | ??????????#" ????????????????????????????????????? | | ??????????# ????????????????????????????????????? | | ??????????? ????????????????????????????????????? | | ?????????????????????????????????????????????????? | | ?????????????????????????????????????????????????? | | ?????????????????????????????????????????????????? | | ?????????????????????????????????????????????????? | | ?????????????????????????????????????????????????? | | ?????????????????????????????????????????????????? | | ?????????????????????????????????????????????????? | | ?????????????????????????????????????????????????? | | ?????????????????????????????????????????????????? | | ?????????????????????????????????????????????????? | | ?????????????????????????????????????????????????? | | ?????????????????????????????????????????????????? | +----------------------------------------------------+ Best States ------------- Heat Dissipation 90 Coolant Potential 100 Energy Generation 45 Energy Capacity 835 Matter Stores 300 Matter Capacity 300 Sight Range 16 Terrain Scan Density 10 Base Temperature (-) 200 Armor Coverage 1200 Resistance: TH 25 Resistance: EM 90 Propulsion Shielding 66 Weapon Shielding 90 Weapon Cycling 15 Phase Shifting 15 Evasion (%) 55 Targeting Accuracy 16 Target Analysis 8 Core Analysis 10 Recoil Reduction 6 Matter Filtering 30 Offensive Hacking 12 Defensive Hacking 24 Item Schematics ----------------- Hcp. Storage Unit | -9/Materials | Hacked Lrg. Matter Pod | -9/Materials | Hacked Disposable Heat Sink | -9/Materials | Hacked Lgt. Treads | -9/Materials | Hacked Imp. Treads | -9/Mines | Hacked Hacking Suite | -8/Mines | Hacked System Shield | -8/Mines | Hacked Imp. System Shield | -6/Factory | Scanalyzed Robot Schematics ------------------ None Fabricated ------------ Imp. Treads | x2 | -7/Factory System Restoration Module | x2 | -6/Factory | Preloaded Imp. Treads | x2 | -6/Factory Imp. Treads | x2 | -6/Factory Imp. Treads | x2 | -6/Factory Imp. Treads | x2 | -6/Factory Disposable Heat Sink | x2 | -4/Factory Imp. System Shield | x1 | -3/Research Alien Tech Used ----------------- None Achievements -------------- Use The Force Challenges ------------ None Game ------ Seed TransmissionMissileInverter Manual? 0 Play Time 02:48:10 Cumulative 145.8 hours Start 2020.06.04 @ 08:29:05 End 2020.06.04 @ 11:16:12 Sessions 1 Manual Loads 0 Difficulty Rogue Special Mode None Game No. 159 Rogue 159 Adventurer 0 Explorer 0 Win Type 0 Total 17 Types 10/0/2/5/0/0/0 Lore% 60 Gallery% 77 Achievement% 56 Wizard Run 0 Options --------- ASCII 0 Keyboard 0 Movement Mouse Keybinds 0 Fullscreen 0 Font 20/SmallcapsGlow Map View 66x50 Tactical HUD 1 Map Filters NONE Filters NONE Steam 1 RUN: 14808236-10d8-4b9b-9104-77226716ae1b